bitfinex-derivatives/quotes_ETHF0:USTF0_20250927
["timestamp","ask_amount","ask_price","bid_price","bid_amount"]
[1758984020946,1.30073007,4023.9,4023.8,0.45002575]
[1758984021145,1.30073007,4023.9,4023.8,0.70102575]
[1758984021945,1.30073007,4023.9,4023.8,0.45002575]
[1758984022535,16.56779007,4023.9,4023.8,0.00295575]
[1758984022841,16.12073007,4023.9,4023.8,0.00295575]
[1758984023042,16.12073007,4023.9,4023.8,0.45002575]
[1758984023245,16.56779007,4023.9,4023.8,0.45002575]
[1758984028252,16.81879007,4023.9,4023.8,0.45002575]
[1758984030955,16.81879007,4023.9,4023.8,0.00295575]
[1758984032259,16.81879007,4023.9,4023.8,0.45002575]
[1758984033360,20.02659007,4023.9,4023.8,0.45002575]
[1758984034161,20.02659007,4023.9,4023.8,0.00295575]
[1758984035061,0.87474,4023.3,4023.2,0.44713]
[1758984035256,0.66974,4023.2,4023.1,0.44715]
[1758984035461,1.72237007,4023.2,4023.1,0.44715]
[1758984036054,1.72237007,4023.2,4023.1,0.00194078]
[1758984036861,1.27523007,4023.2,4023.1,0.44909078]
[1758984038565,2.70654611,4023.2,4023.1,0.44909078]
[1758984039256,2.95754611,4023.2,4023.1,0.44909078]
[1758984039657,2.95754611,4023.2,4023.1,0.65749078]
[1758984045468,2.95754611,4023.2,4023.1,0.44909078]
[1758984045669,3.40468611,4023.2,4023.1,0.44909078]
[1758984053974,0.4316,4022.2,4022.1,3.4156]
[1758984054285,0.7627,4022.2,4022.1,3.4156]
[1758984054578,0.7627,4022.2,4022.1,4.30096]
[1758984054768,0.5523,4022.2,4022.1,4.30096]
[1758984054969,0.5523,4022.2,4022.1,4.30361571]
[1758984059276,1.08201449,4022.2,4022.1,4.30361571]
[1758984060871,0.5523,4022.2,4022.1,4.30361571]
[1758984061080,1.08207385,4022.2,4022.1,4.30361571]
[1758984062774,1.08207385,4022.2,4022.1,4.55361571]
[1758984065977,1.29247385,4022.2,4022.1,3.65771571]
[1758984067282,1.29247385,4022.2,4022.1,0.44991571]
[1758984067876,4.50027385,4022.2,4022.1,0.44991571]
[1758984071583,4.50027385,4022.2,4022.1,0.00265571]
[1758984071584,4.94752385,4022.2,4022.1,0.00265571]
[1758984072389,4.94752385,4022.2,4022.1,0.44991571]
[1758984073987,5.19752385,4022.2,4022.1,0.44991571]
[1758984074493,4.75027385,4022.2,4022.1,0.44991571]
[1758984075885,4.50027385,4022.2,4022.1,0.44991571]
[1758984076081,4.75027385,4022.2,4022.1,0.44991571]
[1758984079292,5.19752385,4022.2,4022.1,0.44991571]
[1758984079892,4.75027385,4022.2,4022.1,0.44991571]
[1758984083493,5.19752385,4022.2,4022.1,0.44991571]
[1758984083790,8.01883989,4022.2,4022.1,0.00265571]
[1758984083994,14.91883989,4022.2,4022.1,0.00265571]
[1758984085083,14.91883989,4022.2,4021.7,0.44729]
[1758984085084,0.88939,4021.8,4021.7,0.44729]
[1758984085287,0.7699,4021.2,4021.1,3.87317]
[1758984085594,2.73098989,4021.2,4021.1,3.65517]
[1758984086093,2.73393051,4021.2,4021.1,3.65741446]
[1758984086295,3.43129051,4021.2,4021.1,0.00224446]
[1758984087188,6.63909051,4021.2,4021.1,0.00224446]
[1758984092700,6.63909051,4021.2,4021.1,0.44961446]
[1758984096203,6.63909051,4021.2,4021.1,0.00224446]
[1758984097597,6.63909051,4021.2,4021.1,0.66761446]
[1758984097598,4.51041447,4021.2,4021.1,0.66761446]
[1758984097803,5.20777447,4021.2,4021.1,0.87421446]
[1758984098404,4.76041447,4021.2,4021.1,0.87421446]
[1758984099101,5.20777447,4021.2,4021.1,0.87421446]
[1758984099605,4.76041447,4021.2,4021.1,0.87421446]
[1758984099805,1.55261447,4021.2,4021.1,0.87421446]
[1758984101600,1.07731447,4021.2,4021.1,1.09131446]
[1758984101800,0.86051447,4021.2,4021.1,1.09131446]
[1758984106220,1.30261447,4021.2,4021.1,0.87421446]
[1758984106524,1.30261447,4021.2,4021.1,0.66761446]
[1758984106725,1.30261447,4021.2,4021.1,0.87421446]
[1758984108127,6.54553059,4021.2,4021.1,0.44961446]
[1758984108328,6.99289059,4021.2,4021.1,0.44961446]
[1758984111830,6.54553059,4021.2,4021.1,0.44961446]
[1758984112328,6.99289059,4021.2,4021.1,0.44961446]
[1758984112928,6.29553059,4021.2,4021.1,0.44961446]
[1758984113121,1.55261447,4021.2,4021.1,0.87281446]
[1758984114223,1.55261447,4021.2,4021.1,0.66761446]
[1758984115830,1.99997447,4021.2,4021.1,0.66761446]
[1758984116531,1.55261447,4021.2,4021.1,0.66761446]
[1758984117130,1.99997447,4021.2,4021.1,0.66761446]
[1758984118230,1.99997447,4021.2,4021.1,0.44961446]
[1758984118728,1.55261447,4021.2,4021.1,0.44961446]
[1758984118933,1.99997447,4021.2,4021.1,0.44961446]
[1758984121134,3.78509059,4021.2,4021.1,0.44961446]
[1758984123139,3.33773059,4021.2,4021.1,0.44961446]
[1758984123636,3.78509059,4021.2,4021.1,0.44961446]
[1758984127535,0.86051447,4021.2,4021.1,1.08661446]
[1758984127732,0.00294062,4021.2,4021.1,8.12173058]
[1758984128935,6.2e-07,4021.2,4021.1,8.12173058]
[1758984132039,0.52550062,4021.2,4021.1,1.08661446]
[1758984132244,0.52550062,4021.2,4021.1,1.33661446]
[1758984133342,0.73410062,4021.2,4021.1,1.08661446]
[1758984133547,0.73410062,4021.2,4021.1,1.11981446]
[1758984137939,0.73410062,4021.2,4021.1,1.42921446]
[1758984139744,0.73410062,4021.2,4021.1,0.86981446]
[1758984139953,1.26342317,4021.2,4021.1,1.11981446]
[1758984140154,1.26342317,4021.2,4021.1,0.69961446]
[1758984140845,1.26342317,4021.2,4021.1,0.44961446]
[1758984141553,1.71078317,4021.2,4021.1,0.44961446]
[1758984141850,3.49589929,4021.2,4021.1,0.00224446]
[1758984142850,3.49589929,4021.2,4021.1,0.44961446]
[1758984143042,3.04853929,4021.2,4021.1,0.44961446]
[1758984143242,1.26342317,4021.2,4021.1,0.44961446]
[1758984145955,1.26342317,4021.2,4021.1,0.66411446]
[1758984152962,1.26342317,4021.2,4021.1,0.44961446]
[1758984155660,1.26342317,4021.2,4021.1,0.66411446]
[1758984156557,1.26342317,4021.2,4021.1,0.44961446]
[1758984168877,1.26342317,4021.2,4021.1,0.89031446]
[1758984169068,1.26342317,4021.2,4021.1,1.21021446]
[1758984169778,1.26342317,4021.2,4021.1,0.89031446]
[1758984170681,1.26342317,4021.2,4021.1,1.21021446]
[1758984177488,1.26342317,4021.2,4021.1,1.46021446]
[1758984177686,1.26342317,4021.2,4021.1,1.14031446]
[1758984178691,1.26342317,4021.2,4021.1,1.46011446]
[1758984181788,1.26342317,4021.2,4021.1,1.14031446]
[1758984186195,1.26342317,4021.2,4021.1,1.46011446]
[1758984186493,1.05482317,4021.2,4021.1,1.46011446]
[1758984187195,0.83592317,4021.2,4021.1,1.46011446]
[1758984187593,0.52932317,4021.2,4021.1,6.46011446]
[1758984188295,6.2e-07,4021.2,4021.1,6.14031446]
[1758984202205,6.2e-07,4021.2,4021.1,7.57281163]
[1758984213829,6.2e-07,4021.2,4021.1,2.57281163]
[1758984214032,0.52930062,4021.2,4021.1,0.69961446]
[1758984214233,0.73520062,4021.2,4021.1,0.92391446]
[1758984214427,1.26579255,4021.2,4021.1,0.92391446]
[1758984214626,1.26579255,4021.2,4020.7,3.2078]
[1758984214627,0.123,4021.0,4020.7,3.2078]
[1758984214823,0.123,4021.0,4019.6,2.04807441]
[1758984214824,0.123,4020.5,4020.2,3.2078]
[1758984215029,0.736,4020.3,4020.2,3.65527]
[1758984215224,0.2149,4019.3,4019.2,0.44758]
[1758984215540,0.736,4019.3,4019.2,0.92288]
[1758984215831,0.736,4019.3,4018.3,0.69867]
[1758984215832,0.123,4018.5,4018.3,0.69867]
[1758984216029,1.85329717,4018.4,4018.3,0.251]
[1758984216223,2.16849717,4018.4,4018.3,0.251]
[1758984216939,0.736,4018.4,4018.3,0.25285495]
[1758984217330,0.736,4018.4,4018.3,0.47715495]
[1758984217537,0.3152,4019.2,4019.1,0.76829]
[1758984217836,0.5301,4019.2,4019.1,1.45929]
[1758984218339,0.736,4019.2,4019.1,1.13859]
[1758984219033,0.736,4019.2,4019.1,1.45929]
[1758984220142,0.5301,4019.2,4019.1,1.45929]
[1758984221023,0.0030871,4019.3,4019.1,1.13859]
[1758984221224,0.0030871,4019.3,4019.2,0.7607]
[1758984222327,7.1e-06,4019.3,4019.2,0.7607]
[1758984224628,0.3152,4020.4,4019.9,0.8875]
[1758984224831,4.0668,4020.5,4020.4,0.2243]
[1758984225032,4.0668,4020.5,4020.0,0.5717]
[1758984225033,3.7516,4020.5,4020.3,0.69845]
[1758984225232,0.736,4020.4,4020.3,0.69845]
[1758984225634,0.73803708,4020.4,4020.3,0.69845]
[1758984226240,0.73803708,4020.4,4020.3,0.92275]
[1758984227840,0.73803708,4020.4,4020.3,1.45915]
[1758984228040,0.53213708,4020.4,4020.3,1.45915]
[1758984229436,7.08e-06,4020.4,4020.3,3.24561515]
[1758984230438,7.08e-06,4020.4,4020.3,3.44136215]
[1758984230640,0.123,4021.5,4020.9,0.44739]
[1758984230843,0.5438,4021.5,4021.4,1.00684]
[1758984231346,0.859,4021.5,4021.4,0.67164]
[1758984231548,0.859,4021.5,4021.4,1.22254]
[1758984231740,0.86096037,4021.5,4021.4,1.22483157]
[1758984232137,0.86096037,4021.5,4021.4,0.88963157]
[1758984232637,0.86096037,4021.5,4021.4,1.22483157]
[1758984233036,0.73796037,4021.5,4021.4,1.22483157]
[1758984233342,0.87016037,4021.5,4021.4,0.44963157]
[1758984233541,5.87016037,4021.5,4021.4,0.44963157]
[1758984234740,5.87016037,4021.5,4021.4,0.00229157]
[1758984236838,6.31748037,4021.5,4021.4,0.00229157]
[1758984238348,6.56848037,4021.5,4021.4,0.00229157]
[1758984240443,0.8761,4020.5,4020.4,0.5346]
[1758984240649,0.8761,4020.5,4020.4,0.66355]
[1758984241443,0.8761,4020.5,4020.4,0.66607192]
[1758984241944,1.32354,4020.5,4020.4,0.44997192]
[1758984244951,0.8761,4020.5,4020.4,0.44997192]
[1758984245149,10.05942201,4020.5,4020.4,0.00252192]
[1758984249454,10.05942201,4020.5,4020.4,0.44997192]
[1758984255768,9.61198201,4020.5,4020.4,0.44997192]
[1758984256561,10.05942201,4020.5,4020.4,0.44997192]
[1758984257763,9.61198201,4020.5,4020.4,0.44997192]
[1758984259259,10.05942201,4020.5,4020.4,0.00252192]
[1758984259464,10.05942201,4020.5,4020.4,0.44997192]
[1758984261068,9.61198201,4020.5,4020.4,0.44997192]
[1758984264470,10.05942201,4020.5,4020.4,0.44997192]
[1758984264768,9.61198201,4020.5,4020.4,0.44997192]
[1758984265570,10.05942201,4020.5,4020.4,0.44997192]
[1758984268365,9.61198201,4020.5,4020.4,0.44997192]
[1758984269176,10.05942201,4020.5,4020.4,0.44997192]
[1758984273275,0.4309,4020.1,4020.0,0.44748]
[1758984273475,3.31354716,4020.1,4020.0,0.44748]
[1758984274366,3.76103716,4020.1,4020.0,0.00260671]
[1758984274974,0.749,4019.3,4019.2,0.5458]
[1758984275175,1.27708201,4019.3,4019.2,0.5458]
[1758984275581,1.27708201,4019.3,4019.2,0.99338]
[1758984275972,1.52708201,4019.3,4019.2,0.99660905]
[1758984277174,1.52708201,4019.3,4019.2,0.45080905]
[1758984278077,2.23465201,4019.3,4019.2,0.45080905]
[1758984278278,12.07465201,4019.3,4019.2,0.45080905]
[1758984278876,12.07465201,4019.3,4019.2,0.00322905]
[1758984279080,0.749,4018.7,4018.6,0.99345]
[1758984279281,1.27708201,4018.7,4018.6,0.99345]
[1758984279979,1.27708201,4018.7,4018.6,0.99643185]
[1758984280678,2.71145819,4018.7,4018.6,0.99643185]
[1758984281176,2.18337618,4018.7,4018.6,0.99643185]
[1758984281375,2.18337618,4018.7,4018.6,1.20483185]
[1758984281376,0.749,4018.7,4018.6,1.20483185]
[1758984281683,2.21567618,4018.9,4018.8,1.20183]
[1758984281879,2.96266729,4018.9,4018.8,1.20183]
[1758984282774,2.96253902,4018.9,4018.8,1.20183]
[1758984294084,2.96253902,4018.9,4018.6,0.00298185]
[1758984294390,1.27739066,4018.8,4018.7,0.44764]
[1758984296585,1.72502066,4018.8,4018.7,0.44764]
[1758984296986,1.27739066,4018.8,4018.7,0.44764]
[1758984297989,1.72502066,4018.8,4018.7,0.44764]
[1758984298383,10.95502066,4018.8,4018.7,0.44764]
[1758984299391,10.50739066,4018.8,4018.7,0.44764]
[1758984300193,11.73716684,4018.8,4017.9,0.02488893]
[1758984300386,0.7487,4018.0,4017.9,1.23171893]
[1758984300585,2.71176684,4018.0,4017.9,1.23171893]
[1758984300888,2.18307618,4018.0,4017.9,1.23171893]
[1758984301090,2.71222241,4018.0,4017.9,1.23171893]
[1758984301293,2.8495917,4018.0,4017.9,1.23479696]
[1758984301484,3.0995917,4018.0,4017.9,0.47569696]
[1758984301891,3.0995917,4018.0,4017.9,0.69289696]
[1758984302086,3.0995917,4018.0,4017.9,1.02069696]
[1758984302793,3.0995917,4018.0,4017.9,0.69289696]
[1758984303587,3.0995917,4018.0,4017.9,1.02069696]
[1758984304192,0.73581552,4018.0,4017.9,1.23479696]
[1758984304495,0.53121552,4018.0,4017.9,1.23479696]
[1758984304897,0.73581552,4018.0,4017.9,1.23479696]
[1758984305094,1.06481552,4018.0,4017.9,1.23479696]
[1758984306296,1.27991552,4018.0,4017.9,1.23479696]
[1758984306795,1.28031337,4018.0,4017.9,1.23479696]
[1758984307195,1.28031337,4018.0,4017.9,0.78706696]
[1758984307392,1.28031337,4018.0,4017.9,0.69289696]
[1758984307393,1.41561337,4018.0,4017.9,0.69289696]
[1758984310597,1.66561337,4018.0,4017.9,0.69289696]
[1758984310799,2.11332337,4018.0,4017.9,0.02796696]
[1758984313694,2.11332337,4018.0,4017.9,0.47569696]
[1758984314697,2.11332337,4018.0,4017.9,0.02796696]
[1758984315298,5.60332337,4018.0,4017.9,0.02796696]
[1758984315603,12.28332337,4018.0,4017.9,0.02796696]
[1758984315799,1.33127,4017.5,4017.4,0.44778]
[1758984315992,5.31861408,4017.5,4017.4,0.44778]
[1758984316793,5.06861408,4017.5,4017.4,0.65889753]
[1758984316998,3.95214408,4017.5,4017.4,1.19859753]
[1758984317304,3.73734408,4017.5,4017.4,1.19859753]
[1758984319101,4.27614408,4017.5,4017.4,1.19859753]
[1758984319705,4.48934408,4017.5,4017.4,1.19859753]
[1758984322311,4.62084408,4017.5,4017.4,1.19859753]
[1758984322707,4.62084408,4017.5,4017.4,0.65889753]
[1758984323210,4.62084408,4017.5,4017.4,0.97289753]
[1758984324412,4.62084408,4017.5,4017.4,1.18439753]
[1758984330514,4.62084408,4017.5,4017.4,0.65889753]
[1758984331323,4.62084408,4017.5,4017.4,0.45029753]
[1758984334919,4.48934408,4017.5,4017.4,1.19949753]
[1758984337818,4.62284408,4017.5,4017.4,1.19949753]
[1758984340520,3.95214408,4017.5,4017.4,1.19949753]
[1758984341107,4.28234408,4017.5,4017.4,1.19949753]
[1758984342017,4.49564408,4017.5,4017.4,1.19949753]
[1758984342418,4.62914408,4017.5,4017.4,1.19949753]
[1758984345120,4.62914408,4017.5,4017.4,0.67399753]
[1758984345723,4.62914408,4017.5,4017.4,0.98799753]
[1758984346524,4.62914408,4017.5,4017.4,1.19949753]
[1758984351529,4.62914408,4017.5,4017.4,0.45029753]
[1758984355728,1.42134408,4017.5,4017.4,0.45029753]
[1758984360438,1.86911408,4017.5,4017.4,0.45029753]
[1758984361343,1.42134408,4017.5,4017.4,0.45029753]
[1758984362134,1.86911408,4017.5,4017.4,0.45029753]
[1758984363947,1.42134408,4017.5,4017.4,0.45029753]
[1758984365147,1.86911408,4017.5,4017.4,0.00251753]
[1758984366547,1.42134408,4017.5,4017.4,0.45029753]
[1758984367345,1.86911408,4017.5,4017.4,0.45029753]
[1758984367749,1.42134408,4017.5,4017.4,0.45029753]
[1758984370050,1.86911408,4017.5,4017.4,0.45029753]
[1758984372856,1.42134408,4017.5,4017.4,0.45029753]
[1758984374063,1.86911408,4017.5,4017.4,0.45029753]
[1758984374759,1.42134408,4017.5,4017.4,0.45029753]
[1758984375559,1.42134408,4017.5,4017.4,0.00251753]
[1758984375560,1.86911408,4017.5,4017.4,0.00251753]
[1758984375761,1.86911408,4017.5,4017.4,0.45029753]
[1758984375956,1.42134408,4017.5,4017.4,0.45029753]
[1758984382571,1.42134408,4017.5,4017.4,0.98369753]
[1758984382770,1.28784408,4017.5,4017.4,1.20119753]
[1758984383862,1.41304408,4017.5,4017.4,1.20119753]
[1758984391177,1.86081408,4017.5,4017.4,0.65759753]
[1758984394770,1.86081408,4017.5,4017.4,0.45029753]
[1758984395875,11.89081408,4017.5,4017.4,0.00251753]
[1758984399587,1.01173,4017.0,4016.9,0.44783]
[1758984399782,0.88656,4016.8,4016.7,0.44785]
[1758984400082,2.00100408,4016.8,4016.7,0.44785]
[1758984400276,3.7892435,4016.8,4016.7,0.44785]
[1758984400479,0.7736,4016.4,4016.3,0.4479]
[1758984400671,1.30314408,4016.4,4016.3,0.45084108]
[1758984400879,1.30314408,4016.4,4016.3,1.00474108]
[1758984401974,1.30314408,4016.4,4016.3,1.22014108]
[1758984402579,2.73912099,4016.4,4016.3,1.22014108]
[1758984406388,1.30314408,4016.4,4016.3,1.22014108]
[1758984406590,2.73912099,4016.4,4016.3,1.22014108]
[1758984406783,1.30314408,4016.4,4016.3,1.22014108]
[1758984406984,2.73912099,4016.4,4016.3,1.22014108]
[1758984408486,3.18701099,4016.4,4016.3,0.77224108]
[1758984408687,3.18701099,4016.4,4016.3,0.67014108]
[1758984408883,3.18701099,4016.4,4016.3,0.45084108]
[1758984409079,3.43701099,4016.4,4016.3,0.00294108]
[1758984409283,3.43701099,4016.4,4015.6,1.36996]
[1758984409284,0.3451,4015.5,4015.4,1.0019]
[1758984409486,2.33477691,4015.5,4015.4,1.0019]
[1758984409695,2.33477691,4015.5,4015.4,1.2173]
[1758984410389,2.33477691,4015.5,4015.4,1.21989639]
[1758984410590,2.20957691,4015.5,4015.4,1.21989639]
[1758984411090,2.33477691,4015.5,4015.4,1.21989639]
[1758984411281,11.75276691,4015.5,4015.4,0.00259639]
[1758984411491,17.28075515,4015.5,4015.4,0.00259639]
[1758984412293,12.28075515,4015.5,4015.4,0.00259639]
[1758984413181,0.1258,4015.0,4014.7,0.44807]
[1758984413383,0.771,4014.8,4014.7,0.44807]
[1758984413586,0.771,4014.8,4014.7,1.18987]
[1758984414187,0.77312064,4014.8,4014.7,1.19262738]
[1758984417691,0.77312064,4014.8,4014.7,0.67472738]
[1758984417887,17.71355597,4014.8,4014.7,0.00275738]
[1758984418283,11.27757906,4014.8,4014.7,0.00275738]
[1758984419493,10.82950906,4014.8,4014.7,0.45083738]
[1758984419693,11.27757906,4014.8,4014.7,0.45083738]
[1758984419893,16.27757906,4014.8,4014.7,0.00275738]
[1758984421394,16.27757906,4014.8,4014.7,0.45083738]
[1758984421996,10.57950906,4014.8,4014.7,0.45083738]
[1758984422295,1.54950906,4014.8,4014.7,0.98283738]
[1758984422495,4.28312064,4014.8,4014.7,0.98283738]
[1758984422694,0.77312064,4014.8,4014.7,1.19263738]
[1758984422889,0.77312064,4014.8,4014.7,0.45083738]
[1758984422890,1.47119064,4014.8,4014.7,0.45083738]
[1758984423096,1.02312064,4014.8,4014.7,0.45083738]
[1758984423296,1.02312064,4014.8,4014.7,0.67473738]
[1758984423694,1.02312064,4014.8,4014.7,0.98283738]
[1758984424094,1.02312064,4014.8,4014.7,1.19263738]
[1758984425497,11.59716755,4014.8,4014.7,0.00275738]
[1758984425701,12.12281433,4014.8,4014.7,0.00275738]
[1758984426504,17.12281433,4014.8,4014.7,0.00275738]
[1758984426997,17.12281433,4014.8,4014.0,0.44816]
[1758984426998,0.771,4014.1,4014.0,0.44816]
[1758984427198,2.90512691,4014.1,4014.0,0.44816]
[1758984427398,2.90512691,4014.1,4012.9,0.1941023]
[1758984427399,17.13447691,4014.1,4012.9,0.1941023]
[1758984427601,2.33277691,4013.0,4012.9,0.98028]
[1758984427805,4.2318,4013.0,4012.9,0.45007481]
[1758984428004,4.3576,4013.0,4012.9,0.67397481]
[1758984428200,0.44828,4012.9,4011.8,0.329]
[1758984428500,5.39937691,4011.9,4011.8,1.222]
[1758984428998,4.86477691,4011.9,4011.8,1.222]
[1758984429198,4.64377691,4011.9,4011.8,1.222]
[1758984429401,4.64580833,4011.9,4011.8,1.22441576]
[1758984429606,4.86680833,4011.9,4011.8,1.22441576]
[1758984429899,4.86680833,4011.9,4011.8,0.77601576]
[1758984429900,5.08060833,4011.9,4011.8,0.77601576]
[1758984430202,5.65440833,4011.9,4011.8,0.00241576]
[1758984430401,7.61550123,4011.9,4011.8,0.00241576]
[1758984431193,7.61550123,4011.9,4010.4,3.2078]
[1758984431194,0.1292,4011.5,4010.4,3.2078]
[1758984431500,3.2078,4011.1,4011.0,0.8979]
[1758984431808,3.2078,4011.1,4011.0,1.34639]
[1758984432193,3.4288,4011.1,4011.0,0.90047253]
[1758984432704,3.7496,4011.1,4011.0,0.90047253]
[1758984433402,3.4288,4011.1,4011.0,0.90047253]
[1758984433798,3.9634,4011.1,4011.0,0.77617253]
[1758984434103,5.39937691,4011.1,4011.0,0.77617253]
[1758984434505,5.39937691,4011.1,4011.0,0.90047253]
[1758984434708,5.39937691,4011.1,4011.0,0.77617253]
[1758984436301,5.39937691,4011.1,4011.0,0.55587253]
[1758984436608,5.39937691,4011.1,4011.0,0.00257253]
[1758984438904,3.9634,4011.1,4011.0,0.00257253]
[1758984439109,5.39937691,4011.1,4011.0,0.77617253]
[1758984440007,5.39937691,4011.1,4011.0,0.00257253]
[1758984442500,5.39937691,4011.1,4011.0,0.45106253]
[1758984444311,5.39937691,4011.1,4011.0,0.00257253]
[1758984444713,5.39937691,4011.1,4011.0,0.45106253]
[1758984445307,5.39937691,4011.1,4011.0,0.00257253]
[1758984445512,6.10085691,4011.1,4011.0,0.00257253]
[1758984446311,5.39937691,4011.1,4011.0,0.45106253]
[1758984446517,5.65237691,4011.1,4011.0,0.45106253]
[1758984446706,6.10085691,4011.1,4011.0,0.45106253]
[1758984447011,6.10085691,4011.1,4011.0,0.00257253]
[1758984447412,6.62563254,4011.1,4011.0,0.00257253]
[1758984447711,6.10085691,4011.1,4011.0,0.00257253]
[1758984448110,6.10085691,4011.1,4011.0,0.45106253]
[1758984448312,6.10085691,4011.1,4011.0,0.00257253]
[1758984448513,6.10085691,4011.1,4011.0,0.45106253]
[1758984448812,5.65237691,4011.1,4011.0,0.45106253]
[1758984449015,6.10085691,4011.1,4011.0,0.45106253]
[1758984449215,5.65237691,4011.1,4011.0,0.45106253]
[1758984450411,3.9634,4011.1,4011.0,0.66526253]
[1758984450613,5.65237691,4011.1,4011.0,0.66526253]
[1758984451108,5.65237691,4011.1,4011.0,0.45106253]
[1758984452015,5.39937691,4011.1,4011.0,0.45106253]
[1758984452211,5.65237691,4011.1,4011.0,0.45106253]
[1758984452715,5.39937691,4011.1,4011.0,0.98766253]
[1758984452917,5.65237691,4011.1,4011.0,0.45106253]
[1758984453118,6.17776303,4011.1,4011.0,0.45106253]
[1758984454112,6.17776303,4011.1,4011.0,0.66526253]
[1758984454318,6.17776303,4011.1,4011.0,0.98766253]
[1758984454515,6.17776303,4011.1,4011.0,0.66526253]
[1758984455318,6.17776303,4011.1,4011.0,0.98766253]
[1758984455519,6.17776303,4011.1,4011.0,0.66526253]
[1758984455818,6.17776303,4011.1,4011.0,0.45106253]
[1758984457812,4.48878612,4011.1,4011.0,1.21436253]
[1758984458007,5.71096303,4011.1,4011.0,1.33766253]
[1758984458214,5.39016303,4011.1,4011.0,1.33766253]
[1758984458820,5.72606303,4011.1,4011.0,1.33766253]
[1758984459121,3.95418612,4011.1,4011.0,1.33766253]
[1758984459321,5.39016303,4011.1,4011.0,1.33766253]
[1758984460226,3.17919612,4011.1,4011.0,6.33766253]
[1758984460520,3.17919612,4011.1,4011.0,1.33766253]
[1758984461819,0.52538612,4011.1,4011.0,1.33766253]
[1758984464021,0.52538612,4011.1,4011.0,1.59066253]
[1758984465824,0.52538612,4011.1,4011.0,6.59066253]
[1758984466124,0.7566,4011.6,4011.5,0.98504]
[1758984466617,0.7566,4011.6,4011.5,1.21174]
[1758984467123,0.5552,4011.5,4011.4,0.44845]
[1758984467424,7.27468475,4011.5,4011.4,0.44845]
[1758984468518,17.22878475,4011.5,4011.0,1.12379253]
[1758984468719,3.9644,4011.2,4011.1,0.44848]
[1758984469730,5.75798475,4011.2,4011.1,0.44848]
[1758984470730,6.00998475,4011.2,4011.1,0.44848]
[1758984471326,6.00998475,4011.2,4011.0,0.00257253]
[1758984471633,6.00998475,4011.2,4011.1,0.44848]
[1758984475836,6.45845475,4011.2,4011.1,0.44848]
[1758984476529,6.00998475,4011.2,4011.1,0.44848]
[1758984476729,6.45845475,4011.2,4011.0,0.00257253]
[1758984476938,0.7537,4011.1,4011.0,0.45106253]
[1758984477935,1.28084975,4011.1,4011.0,0.45106253]
[1758984478832,1.72932975,4011.1,4011.0,0.45106253]
[1758984479040,0.74954975,4011.1,4011.0,1.33856253]
[1758984479239,0.7537,4011.1,4011.0,1.20726253]
[1758984480033,0.7537,4011.1,4011.0,1.33856253]
[1758984482938,3.2078,4011.2,4011.1,1.20468]
[1758984483138,3.73500564,4011.2,4011.1,1.20468]
[1758984484436,3.2078,4011.2,4011.1,1.20468]
[1758984485134,3.7411,4011.2,4011.1,1.20468]
[1758984486345,3.2078,4011.2,4011.1,1.20468]
[1758984486648,3.9615,4011.2,4011.1,1.45668]
[1758984494048,3.2078,4011.2,4011.1,1.45668]
[1758984495448,3.7478,4011.2,4011.1,1.45668]
[1758984496751,3.9567,4011.2,4011.1,1.45668]
[1758984500051,3.2078,4011.2,4011.1,1.45668]
[1758984500353,3.4273,4011.7,4011.6,0.66412]
[1758984500550,4.27459491,4011.7,4011.6,1.12832]
[1758984500851,4.27459491,4011.7,4011.6,1.43832]
[1758984501053,3.2078,4011.7,4011.6,3.23190475]
[1758984502350,3.6362,4012.8,4012.7,0.7583]
[1758984502556,4.16289316,4012.8,4012.5,0.252]
[1758984502756,3.6362,4012.8,4012.7,0.4483]
[1758984502957,4.16294477,4012.8,4012.7,0.4483]
[1758984503154,4.16497972,4012.8,4012.7,0.4483]
[1758984503852,0.95717972,4012.8,4012.7,0.4483]
[1758984504251,1.28977972,4012.8,4012.7,0.9908]
[1758984505255,0.76303495,4012.8,4012.7,0.9908]
[1758984506057,0.76303495,4012.8,4012.7,1.2428]
[1758984510065,0.76303495,4012.8,4012.7,1.4537]
[1758984510267,0.43043495,4012.8,4012.7,1.4537]
[1758984510972,0.76303495,4012.8,4012.7,1.4537]
[1758984513774,0.76303495,4012.8,4012.7,1.2017]
[1758984513974,0.76303495,4012.8,4012.7,1.4537]
[1758984517277,0.43043495,4012.8,4012.7,1.4537]
[1758984517667,0.76423495,4012.8,4012.7,1.2017]
[1758984517977,0.76423495,4012.8,4012.7,1.2428]
[1758984518572,0.76423495,4012.8,4012.7,1.2017]
[1758984518767,0.76423495,4012.8,4012.7,1.4537]
[1758984521870,0.43163495,4012.8,4012.7,1.4537]
[1758984522773,0.21753495,4012.8,4012.7,1.4537]
[1758984524476,0.21753495,4012.8,4012.5,0.1325]
[1758984524477,3.0061097,4012.8,4012.5,0.1325]
[1758984524683,3.0061097,4012.8,4012.1,0.44837]
[1758984524684,0.4296,4012.3,4012.1,0.44837]
[1758984524885,0.7622,4012.0,4011.9,0.77409]
[1758984525185,2.20118892,4012.0,4011.9,0.77409]
[1758984525572,1.86858892,4012.0,4011.9,1.20179]
[1758984526788,2.20118892,4012.0,4011.9,0.77409]
[1758984526983,2.32558892,4012.0,4011.9,0.70039]
[1758984527374,2.32558892,4012.0,4011.9,0.44839]
[1758984528189,2.20118892,4012.0,4011.9,0.44839]
[1758984528382,2.20118892,4012.0,4011.9,0.77409]
[1758984528582,2.20118892,4012.0,4011.9,0.99089]
[1758984532382,2.20118892,4012.0,4011.9,1.24289]
[1758984534986,2.20118892,4012.0,4011.9,1.45379]
[1758984535291,0.2197,4012.5,4012.4,1.20144]
[1758984535486,0.52734186,4012.5,4012.4,1.45344]
[1758984535789,0.74704186,4012.5,4012.4,1.45344]
[1758984536694,1.27534186,4012.5,4012.4,1.01964]
[1758984536899,1.27534186,4012.5,4012.4,1.24194]
[1758984537191,1.27534186,4012.5,4012.4,1.45344]
[1758984540194,1.27534186,4012.5,4012.4,0.44834]
[1758984540392,1.27534186,4012.5,4012.4,0.98994]
[1758984540694,1.27534186,4012.5,4012.4,1.20144]
[1758984541296,0.96154186,4012.5,4012.4,1.20144]
[1758984542590,0.3138,4012.4,4011.7,3.2078]
[1758984542790,2.18698892,4011.8,4011.7,3.65621]
[1758984544996,2.18698892,4011.8,4011.7,3.97551]
[1758984546501,0.4342,4011.8,4011.7,4.66131]
[1758984547187,0.748,4011.8,4011.7,4.66131]
[1758984549900,0.4342,4011.8,4011.7,4.66131]
[1758984553706,0.4342,4011.8,4011.7,4.40931]
[1758984553906,0.4342,4011.8,4011.7,4.66131]
[1758984555908,0.2197,4011.8,4011.7,4.66131]